fUST/lending_fUST_20251130
["ID","MTS","AMOUNT","RATE_DAILY","PERIOD"]
[395112509,1764447047389,-500.0,0.00013273,2]
[395112510,1764447047400,-500.0,0.00013273,2]
[395112511,1764447047410,-500.0,0.00013273,2]
[395112512,1764447047420,-500.0,0.00013273,2]
[395112513,1764447047429,-500.0,0.00013273,2]
[395112514,1764447047439,-516.87250758,0.00013273,2]
[395112515,1764447047449,-500.0,0.00013273,2]
[395112516,1764447047459,-500.0,0.00013273,2]
[395112517,1764447047473,-449.0,0.00013288,2]
[395112518,1764447047482,-523.313899,0.000133,3]
[395112519,1764447047492,-523.313899,0.000133,3]
[395112520,1764447047501,-523.313899,0.000133,3]
[395112521,1764447047511,-523.313899,0.000133,3]
[395112522,1764447047520,-523.313899,0.000133,3]
[395112523,1764447047530,-669.03640111,0.00013305,2]
[395112524,1764447047539,-861.06425247,0.00013342,2]
[395112525,1764447047550,-1231.67724625,0.00013343,2]
[395112526,1764447047559,-577.0,0.00013375,2]
[395112527,1764447047569,-1180.0,0.00013375,2]
[395112528,1764447047579,-500.0,0.00013375,2]
[395112529,1764447047588,-151.0,0.000134,2]
[395112530,1764447047603,-151.0,0.000134,2]
[395112531,1764447047613,-449.0,0.00013425,2]
[395112532,1764447047622,-577.0,0.00013512,2]
[395112533,1764447047632,-1180.0,0.00013512,2]
[395112534,1764447047642,-963.4124176,0.00013528,2]
[395112535,1764447047651,-2472.5461062,0.00013549,2]
[395112536,1764447047660,-449.0,0.00013562,2]
[395112537,1764447047671,-12852.78189921,0.00013598,2]
[395112538,1764447047680,-577.0,0.00013649,2]
[395112539,1764447047690,-1180.0,0.00013649,2]
[395112540,1764447047699,-500.0,0.00013649,2]
[395112541,1764447047708,-300.0,0.00013673,2]
[395112542,1764447047718,-1773.61523461,0.0001369,2]
[395112543,1764447047727,-156.587,0.00013691,2]
[395112544,1764447047736,-298.26089446,0.00013692,2]
[395112545,1764447047744,-1053.92,0.00013698,2]
[395112546,1764447047754,-500.0,0.00013698,2]
[395112547,1764447047763,-500.0,0.00013698,2]
[395112548,1764447047773,-206.85275644,0.00013698,2]
[395112549,1764447047782,-501.64583703,0.00013698,2]
[395112550,1764447047792,-573.67,0.00013698,2]
[395112551,1764447047801,-500.0,0.00013698,2]
[395112552,1764447047811,-500.0,0.00013698,2]
[395112553,1764447047821,-500.0,0.00013698,2]
[395112554,1764447047830,-500.0,0.00013698,2]
[395112555,1764447047839,-500.0,0.00013698,2]
[395112556,1764447047851,-500.0,0.00013698,2]
[395112557,1764447047860,-500.0,0.00013698,2]
[395112558,1764447047870,-1369.42,0.00013698,2]
[395112559,1764447047880,-500.0,0.00013698,2]
[395112560,1764447047890,-500.0,0.00013698,2]
[395112561,1764447047900,-502.78281228,0.00013698,2]
[395112562,1764447047909,-500.0,0.00013698,2]
[395112563,1764447047919,-574.37,0.00013698,2]
[395112564,1764447047928,-574.37,0.00013698,2]
[395112565,1764447047937,-574.37,0.00013698,2]
[395112566,1764447047947,-574.37,0.00013698,2]
[395112567,1764447047957,-574.37,0.00013698,2]
[395112568,1764447047967,-574.37,0.00013698,2]
[395112569,1764447047976,-574.37,0.00013698,2]
[395112570,1764447047987,-574.37,0.00013698,2]
[395112571,1764447048007,-574.37,0.00013698,2]
[395112572,1764447048018,-574.37,0.00013698,2]
[395112573,1764447048027,-574.37,0.00013698,2]
[395112574,1764447048037,-574.37,0.00013698,2]
[395112575,1764447048046,-574.37,0.00013698,2]
[395112576,1764447048056,-574.37,0.00013698,2]
[395112577,1764447048066,-574.37,0.00013698,2]
[395112578,1764447048075,-574.37,0.00013698,2]
[395112579,1764447048084,-574.37,0.00013698,2]
[395112580,1764447048094,-574.37,0.00013698,2]
[395112581,1764447048104,-574.37,0.00013698,2]
[395112582,1764447048113,-574.37,0.00013698,2]
[395112583,1764447048122,-574.37,0.00013698,2]
[395112584,1764447048132,-574.37,0.00013698,2]
[395112585,1764447048141,-574.37,0.00013698,2]
[395112586,1764447048151,-574.59917836,0.00013698,2]
[395112587,1764447048160,-500.0,0.00013698,2]
[395112588,1764447048170,-500.0,0.00013698,2]
[395112589,1764447048179,-500.0,0.00013698,2]
[395112590,1764447048188,-500.0,0.00013698,2]
[395112591,1764447048197,-500.0,0.00013698,2]
[395112592,1764447048207,-500.0,0.00013698,2]
[395112593,1764447048216,-500.0,0.00013698,2]
[395112594,1764447048226,-500.0,0.00013698,2]
[395112595,1764447048236,-500.0,0.00013698,2]
[395112596,1764447048245,-562.93,0.00013698,2]
[395112597,1764447048255,-500.0,0.00013698,2]
[395112598,1764447048265,-500.0,0.00013698,2]
[395112599,1764447048275,-500.0,0.00013698,2]
[395112600,1764447048284,-500.0,0.00013698,2]
[395112601,1764447048294,-500.0,0.00013698,2]
[395112602,1764447048303,-500.0,0.00013698,2]
[395112603,1764447048312,-568.11748987,0.00013698,2]
[395112604,1764447048321,-571.32,0.00013698,2]
[395112605,1764447048331,-744.23,0.00013698,2]
[395112606,1764447048341,-168.56071175,0.00013698,2]
[395112607,1764447048350,-502.89634156,0.00013698,2]
[395112608,1764447048360,-714.73,0.00013698,2]
[395112609,1764447048370,-501.23721042,0.00013698,2]
[395112610,1764447048379,-500.22985473,0.00013698,2]
[395112611,1764447048389,-500.0,0.00013698,2]
[395112612,1764447048398,-500.0,0.00013698,2]
[395112613,1764447048408,-502.85483167,0.00013698,2]
[395112614,1764447048418,-500.0,0.00013698,2]
[395112615,1764447048427,-518.25,0.00013698,2]
[395112616,1764447048436,-501.3598687,0.00013698,2]
[395112617,1764447048446,-500.0,0.00013698,2]
[395112618,1764447048455,-500.0,0.00013698,2]
[395112619,1764447048465,-500.78286828,0.00013698,2]
[395112620,1764447048474,-500.0,0.00013698,2]
[395112621,1764447048484,-504.86957647,0.00013698,2]
[395112622,1764447048494,-500.0,0.00013698,2]
[395112623,1764447048504,-500.0,0.00013698,2]
[395112624,1764447048514,-503.05147958,0.00013698,2]
[395112625,1764447048523,-500.0,0.00013698,2]
[395112626,1764447048533,-500.0,0.00013698,2]
[395112627,1764447048542,-624.68684712,0.00013698,2]
[395112628,1764447048552,-500.0,0.00013698,2]
[395112629,1764447048561,-501.75933377,0.00013698,2]
[395112630,1764447048571,-501.49931248,0.00013698,2]
[395112631,1764447048581,-789.43,0.00013698,2]
[395112632,1764447048591,-502.91388976,0.00013698,2]
[395112633,1764447048604,-1818.26,0.00013698,2]
[395112634,1764447048614,-523.313899,0.00013698,2]
[395112635,1764447048623,-501.21333734,0.00013698,2]
[395112636,1764447048632,-500.0,0.00013698,2]
[395112637,1764447048643,-501.91185995,0.00013698,2]
[395112638,1764447048652,-151.0,0.00013698,2]
[395112639,1764447048662,-500.0,0.00013698,2]
[395112640,1764447048671,-500.0,0.00013698,2]
[395112641,1764447048683,-583.74994664,0.00013698,2]
[395112642,1764447048692,-500.0,0.00013698,2]
[395112643,1764447048701,-500.0,0.00013698,2]
[395112644,1764447048711,-500.0,0.00013698,2]
[395112645,1764447048720,-500.0,0.00013698,2]
[395112646,1764447048730,-510.98,0.00013698,2]
[395112647,1764447048739,-500.56876429,0.00013698,2]
[395112648,1764447048749,-339.73467151,0.00013698,2]
[395112649,1764447048759,-540.58,0.00013698,2]
[395112650,1764447048769,-500.73440384,0.00013698,2]
[395112651,1764447048778,-1181.02,0.00013698,2]
[395112652,1764447048788,-500.0,0.00013698,2]
[395112653,1764447048797,-500.0,0.00013698,2]
[395112654,1764447048806,-533.75,0.00013698,2]
[395112655,1764447048815,-501.20377958,0.00013698,2]
[395112656,1764447048825,-500.0,0.00013698,2]
[395112657,1764447048838,-519.57182153,0.00013698,2]
[395112658,1764447048847,-504.42869012,0.00013698,2]
[395112659,1764447048857,-500.0,0.00013698,2]
[395112660,1764447048866,-500.0,0.00013698,2]
[395112661,1764447048876,-500.0,0.00013698,2]
[395112662,1764447048886,-500.0,0.00013698,2]
[395112663,1764447048896,-500.0,0.00013698,2]
[395112664,1764447048906,-500.0,0.00013698,2]
[395112665,1764447048915,-500.0,0.00013698,2]
[395112666,1764447048925,-500.0,0.00013698,2]
[395112667,1764447048934,-949.26,0.00013698,2]
[395112668,1764447048942,-500.0,0.00013698,2]
[395112669,1764447048951,-745.92,0.00013698,2]
[395112670,1764447048960,-500.0,0.00013698,2]
[395112671,1764447048969,-500.0,0.00013698,2]
[395112672,1764447048979,-500.0,0.00013698,2]
[395112673,1764447048988,-500.0,0.00013698,2]
[395112674,1764447048997,-500.0,0.00013698,2]
[395112675,1764447049006,-419.85815108,0.00013698,2]
[395112676,1764447049015,-500.0,0.00013698,2]
[395112677,1764447049024,-500.0,0.00013698,2]
[395112678,1764447049033,-500.0,0.00013698,2]
[395112679,1764447049043,-500.0,0.00013698,2]
[395112680,1764447049052,-500.0,0.00013698,2]
[395112681,1764447049061,-500.0,0.00013698,2]
[395112682,1764447049071,-500.0,0.00013698,2]
[395112683,1764447049081,-500.0,0.00013698,2]
[395112684,1764447049090,-500.0,0.00013698,2]
[395112685,1764447049100,-500.0,0.00013698,2]
[395112686,1764447049109,-500.0,0.00013698,2]
[395112687,1764447049118,-500.0,0.00013698,2]
[395112688,1764447049127,-500.0,0.00013698,2]
[395112689,1764447049136,-500.0,0.00013698,2]
[395112690,1764447049146,-907.07,0.00013698,2]
[395112691,1764447049155,-604.62,0.00013698,2]
[395112692,1764447049164,-500.0,0.00013698,2]
[395112693,1764447049173,-500.0,0.00013698,2]
[395112694,1764447049183,-5933.31,0.00013698,2]
[395112695,1764447049193,-642.19,0.00013698,2]
[395112696,1764447049202,-500.0,0.00013698,2]
[395112697,1764447049211,-1451.25,0.00013698,2]
[395112698,1764447049220,-500.0,0.00013698,2]
[395112699,1764447049230,-1551.34,0.00013698,2]
[395112700,1764447049240,-980.94,0.00013698,2]
[395112701,1764447049249,-500.0,0.00013698,2]
[395112702,1764447049258,-500.0,0.00013698,2]
[395112703,1764447049467,-401.22418263,0.00013698,2]
[395112704,1764447049478,-500.0,0.00013698,2]
[395112705,1764447049488,-500.0,0.00013698,2]
[395112706,1764447049498,-500.0,0.00013698,2]
[395112707,1764447049507,-500.0,0.00013698,2]
[395112708,1764447049516,-861.84,0.00013698,2]
[395112709,1764447049526,-500.0,0.00013698,2]
[395112710,1764447049536,-500.0,0.00013698,2]
[395112711,1764447049546,-500.0,0.00013698,2]
[395112712,1764447049555,-500.0,0.00013698,2]
[395112713,1764447049566,-500.0,0.00013698,2]
[395112714,1764447049575,-500.0,0.00013698,2]
[395112715,1764447049584,-500.0,0.00013698,2]
[395112716,1764447049595,-500.0,0.00013698,2]
[395112717,1764447049607,-500.0,0.00013698,2]
[395112718,1764447049616,-500.0,0.00013698,2]
[395112719,1764447049625,-500.0,0.00013698,2]
[395112720,1764447049635,-500.0,0.00013698,2]
[395112721,1764447049646,-500.0,0.00013698,2]
[395112722,1764447049656,-500.0,0.00013698,2]
[395112723,1764447049665,-547.46,0.00013698,2]
[395112724,1764447049677,-500.0,0.00013698,2]
[395112725,1764447049687,-426.21455528,0.00013698,2]
[395112726,1764447049696,-500.0,0.00013698,2]
[395112727,1764447049705,-1422.36,0.00013698,2]
[395112728,1764447049715,-500.0,0.00013698,2]
[395112729,1764447049724,-500.0,0.00013698,2]
[395112730,1764447049733,-500.0,0.00013698,2]
[395112731,1764447049743,-559.17263795,0.00013698,2]
[395112732,1764447049752,-500.0,0.00013698,2]
[395112733,1764447049761,-500.0,0.00013698,2]
[395112734,1764447049771,-500.0,0.00013698,2]
[395112735,1764447049780,-500.0,0.00013698,2]
[395112736,1764447049790,-500.0,0.00013698,2]
[395112737,1764447049799,-1158.74,0.00013698,2]
[395112738,1764447049808,-504.15,0.00013698,2]
[395112739,1764447049818,-500.0,0.00013698,2]
[395112740,1764447049827,-500.0,0.00013698,2]
[395112741,1764447049837,-500.0,0.00013698,2]
[395112742,1764447049846,-500.0,0.00013698,2]
[395112743,1764447049856,-1853.84,0.00013698,2]
[395112744,1764447049865,-500.0,0.00013698,2]
[395112745,1764447049874,-500.0,0.00013698,2]
[395112746,1764447049884,-514.33,0.00013698,2]
[395112747,1764447049893,-29042.43,0.00013698,2]
[395112748,1764447049902,-29042.43,0.00013698,2]
[395112749,1764447049911,-29042.43,0.00013698,2]
[395112750,1764447049920,-29042.43,0.00013698,2]
[395112751,1764447049929,-29042.43,0.00013698,2]
[395112752,1764447049939,-29042.43,0.00013698,2]
[395112753,1764447049948,-29042.43,0.00013698,2]
[395112754,1764447049957,-29042.43,0.00013698,2]
[395112755,1764447049966,-29042.43,0.00013698,2]
[395112756,1764447049975,-29042.43,0.00013698,2]
[395112757,1764447049985,-29042.43,0.00013698,2]
[395112758,1764447049994,-29042.43,0.00013698,2]
[395112759,1764447050003,-29042.43,0.00013698,2]
[395112760,1764447050012,-29042.43,0.00013698,2]
[395112761,1764447050022,-29042.43,0.00013698,2]
[395112762,1764447050031,-29042.43,0.00013698,2]
[395112763,1764447050041,-29042.43,0.00013698,2]
[395112764,1764447050051,-29042.43,0.00013698,2]
[395112765,1764447050061,-500.0,0.00013698,2]
[395112766,1764447050071,-500.0,0.00013698,2]
[395112767,1764447050080,-1083.76,0.00013698,2]
[395112768,1764447050090,-500.0,0.00013698,2]
[395112769,1764447050100,-1104.96,0.00013698,2]
[395112770,1764447050111,-29042.43,0.00013698,2]
[395112771,1764447050120,-29042.43,0.00013698,2]
[395112772,1764447050130,-29042.43,0.00013698,2]
[395112773,1764447050139,-29042.43,0.00013698,2]
[395112774,1764447050148,-500.0,0.00013698,2]
[395112775,1764447050157,-29042.43,0.00013698,2]
[395112776,1764447050168,-29042.46,0.00013698,2]
[395112777,1764447050180,-241.13090982,0.00013698,2]
[395112778,1764447050190,-707.97,0.00013698,2]
[395112779,1764447050198,-939.05,0.00013698,2]
[395112780,1764447050207,-500.0,0.00013698,2]
[395112781,1764447050217,-3619.92,0.00013698,2]
[395112782,1764447050226,-6559.69,0.00013698,2]
[395112783,1764447050235,-500.0,0.00013698,2]
[395112784,1764447050244,-500.0,0.00013698,2]
[395112785,1764447050254,-500.0,0.00013698,2]
[395112786,1764447050263,-649.66,0.00013698,2]
[395112787,1764447050272,-1214.71,0.00013698,2]
[395112788,1764447050281,-550.29,0.00013698,2]
[395112789,1764447050290,-500.0,0.00013698,2]
[395112790,1764447050300,-5758.61,0.00013698,2]
[395112791,1764447050309,-4663.64,0.00013698,2]
[395112792,1764447050318,-500.0,0.00013698,2]
[395112793,1764447050327,-500.0,0.00013698,2]
[395112794,1764447050336,-500.0,0.00013698,2]
[395112795,1764447050345,-500.0,0.00013698,2]
[395112796,1764447050354,-500.0,0.00013698,2]
[395112797,1764447050364,-411.9275261,0.00013698,2]
[395112798,1764447050373,-500.0,0.00013698,2]
[395112799,1764447050384,-529.77,0.00013698,2]
[395112800,1764447050393,-500.0,0.00013698,2]
[395112801,1764447050403,-500.0,0.00013698,2]
[395112802,1764447050412,-500.0,0.00013698,2]
[395112803,1764447050423,-500.0,0.00013698,2]
[395112804,1764447050432,-652.25,0.00013698,2]
[395112805,1764447050442,-3678.73,0.00013698,2]
[395112806,1764447050451,-1416.41,0.00013698,2]
[395112807,1764447050460,-500.0,0.00013698,2]
[395112808,1764447050471,-500.0,0.00013698,2]
[395112809,1764447050481,-3777.58,0.00013698,2]
[395112810,1764447050491,-592.68,0.00013698,2]
[395112811,1764447050502,-4127.18,0.00013698,2]
[395112812,1764447050512,-500.0,0.00013698,2]
[395112813,1764447050523,-500.0,0.00013698,2]
[395112814,1764447050533,-500.0,0.00013698,2]
[395112815,1764447050542,-500.0,0.00013698,2]
[395112816,1764447050551,-500.0,0.00013698,2]
[395112817,1764447050561,-800.15,0.00013698,2]
[395112818,1764447050570,-500.0,0.00013698,2]
[395112819,1764447050579,-500.0,0.00013698,2]
[395112820,1764447050588,-500.0,0.00013698,2]
[395112821,1764447050602,-500.0,0.00013698,2]
[395112822,1764447050611,-610.27,0.00013698,2]
[395112823,1764447050620,-919.36,0.00013698,2]
[395112824,1764447050629,-1420.89,0.00013698,2]
[395112825,1764447050638,-500.0,0.00013698,2]
[395112826,1764447050648,-500.0,0.00013698,2]
[395112827,1764447050658,-500.0,0.00013698,2]
[395112828,1764447050667,-500.0,0.00013698,2]
[395112829,1764447050679,-500.84,0.00013698,2]
[395112830,1764447050688,-500.0,0.00013698,2]
[395112831,1764447050697,-500.0,0.00013698,2]
[395112832,1764447050706,-500.0,0.00013698,2]
[395112833,1764447050715,-500.0,0.00013698,2]
[395112834,1764447050724,-1300.48,0.00013698,2]
[395112835,1764447050733,-500.0,0.00013698,2]
[395112836,1764447050742,-596.04,0.00013698,2]
[395112837,1764447050751,-500.0,0.00013698,2]
[395112838,1764447050759,-422.9069409,0.00013698,2]
[395112839,1764447050768,-500.0,0.00013698,2]
[395112840,1764447050777,-7651.96,0.00013698,2]
[395112841,1764447050786,-501.9,0.00013698,2]
[395112842,1764447050795,-500.0,0.00013698,2]
[395112843,1764447050805,-500.0,0.00013698,2]
[395112844,1764447050814,-1053.5,0.00013698,2]
[395112845,1764447050823,-500.0,0.00013698,2]
[395112846,1764447050832,-500.0,0.00013698,2]
[395112847,1764447050841,-662.97,0.00013698,2]
[395112848,1764447050851,-500.0,0.00013698,2]
[395112849,1764447050860,-5000.0,0.00013699,2]
[395112850,1764447050869,-1500.0,0.00013699,2]
[395112851,1764447050878,-64686.9138933,0.00013699,2]
[395112852,1764447050887,-750.0,0.00013699,2]
[395112853,1764447050895,-12955.50028142,0.00013699,2]
[395112854,1764447051102,-870.4291936,0.00013699,2]
[395112855,1764447051120,-3468.37201368,0.00013699,2]
[395112856,1764447051130,-151.0,0.00013699,2]
[395112857,1764447051139,-151.0,0.00013699,2]
[395112858,1764447051149,-151.0,0.00013699,2]
[395112859,1764447051158,-151.0,0.00013699,2]
[395112860,1764447051168,-151.0,0.00013699,2]
[395112861,1764447051179,-151.0,0.00013699,2]
[395112862,1764447051190,-151.0,0.00013699,2]
[395112863,1764447051199,-188.939273,0.00013699,2]
[395112864,1764447051209,-2932.8983486,0.00013699,2]
[395112865,1764447051220,-1000.0,0.00013699,2]
[395112866,1764447051230,-7965.406569,0.00013699,2]
[395112867,1764447051240,-1007.964071,0.00013699,2]
[395112868,1764447051251,-1007.964071,0.00013699,2]
[395112869,1764447051263,-1007.964071,0.00013699,2]
[395112870,1764447051272,-1007.964071,0.00013699,2]
[395112871,1764447051281,-1007.964071,0.00013699,2]
[395112872,1764447051290,-1007.964071,0.00013699,2]
[395112873,1764447051300,-1007.964071,0.00013699,2]
[395112874,1764447051310,-1007.964071,0.00013699,2]
[395112875,1764447051321,-1007.964071,0.00013699,2]
[395112876,1764447051332,-1007.964071,0.00013699,2]
[395112877,1764447051341,-1007.964071,0.00013699,2]
[395112878,1764447051351,-1007.964071,0.00013699,2]
[395112879,1764447051360,-1007.964071,0.00013699,2]
[395112880,1764447051369,-1007.964071,0.00013699,2]
[395112881,1764447051379,-1007.964071,0.00013699,2]
[395112882,1764447051388,-1007.964071,0.00013699,2]
[395112883,1764447051398,-1007.964071,0.00013699,2]
[395112884,1764447051408,-1007.964071,0.00013699,2]
[395112885,1764447051417,-1007.964071,0.00013699,2]
[395112886,1764447051426,-1007.964066,0.00013699,2]
[395112887,1764447051435,-2648.937832,0.00013699,2]
[395112888,1764447051445,-2648.937832,0.00013699,2]
[395112889,1764447051454,-2648.937832,0.00013699,2]
[395112890,1764447051463,-2648.937832,0.00013699,2]
[395112891,1764447051472,-2648.937832,0.00013699,2]
[395112892,1764447051481,-2648.937832,0.00013699,2]
[395112893,1764447051490,-2648.937832,0.00013699,2]
[395112894,1764447051499,-2648.937832,0.00013699,2]
[395112895,1764447051508,-2648.937832,0.00013699,2]
[395112896,1764447051517,-2648.937832,0.00013699,2]
[395112897,1764447051526,-2648.937832,0.00013699,2]
[395112898,1764447051536,-2648.937832,0.00013699,2]
[395112899,1764447051545,-2648.937832,0.00013699,2]
[395112900,1764447051556,-2648.937832,0.00013699,2]
[395112901,1764447051565,-2648.937832,0.00013699,2]
[395112902,1764447051575,-2648.937832,0.00013699,2]
[395112903,1764447051584,-2648.937832,0.00013699,2]
[395112904,1764447051594,-2648.937832,0.00013699,2]
[395112905,1764447051607,-2648.937832,0.00013699,2]
[395112906,1764447051616,-2648.937828,0.00013699,2]
[395112907,1764447051625,-500.0,0.00013699,2]
[395112908,1764447051634,-500.0,0.00013699,2]
[395112909,1764447051644,-500.0,0.00013699,2]
[395112910,1764447051654,-500.0,0.00013699,2]
[395112911,1764447051663,-500.0,0.00013699,2]
[395112912,1764447051671,-500.0,0.00013699,2]
[395112913,1764447051683,-500.0,0.00013699,2]
[395112914,1764447051692,-500.0,0.00013699,2]
[395112915,1764447051702,-164.43889403,0.00013699,2]
[395112916,1764447051711,-500.0,0.00013699,2]
[395112917,1764447051721,-500.0,0.00013699,2]
[395112918,1764447051730,-500.0,0.00013699,2]
[395112919,1764447051739,-500.0,0.00013699,2]
[395112920,1764447051748,-500.0,0.00013699,2]
[395112921,1764447051757,-500.0,0.00013699,2]
[395112922,1764447051766,-500.0,0.00013699,2]
[395112923,1764447051775,-500.0,0.00013699,2]
[395112924,1764447051784,-500.0,0.00013699,2]
[395112925,1764447051794,-158.27750958,0.00013699,2]
[395112926,1764447051803,-500.0,0.00013699,2]
[395112927,1764447051812,-500.0,0.00013699,2]
[395112928,1764447051821,-159.26390463,0.00013699,2]
[395112929,1764447051830,-500.0,0.00013699,2]
[395112930,1764447051842,-278.29232286,0.00013699,2]
[395112931,1764447051851,-177.43703495,0.00013699,2]
[395112932,1764447051860,-454.3858887,0.00013699,2]
[395112933,1764447051870,-500.0,0.00013699,2]
[395112934,1764447051879,-500.0,0.00013699,2]
[395112935,1764447051889,-500.0,0.00013699,2]
[395112936,1764447051900,-500.0,0.00013699,2]
[395112937,1764447051912,-500.0,0.00013699,2]
[395112938,1764447051922,-500.0,0.00013699,2]
[395112939,1764447051932,-500.0,0.00013699,2]
[395112940,1764447051942,-500.0,0.00013699,2]
[395112941,1764447051951,-500.0,0.00013699,2]
[395112942,1764447051961,-500.0,0.00013699,2]
[395112943,1764447051970,-500.0,0.00013699,2]
[395112944,1764447051981,-500.0,0.00013699,2]
[395112945,1764447051991,-336.00305575,0.00013699,2]
[395112946,1764447052000,-521.96956925,0.00013699,2]
[395112947,1764447052011,-160.0759794,0.00013699,2]
[395112948,1764447052022,-500.0,0.00013699,2]
[395112949,1764447052032,-500.0,0.00013699,2]
[395112950,1764447052041,-160.07756683,0.00013699,2]
[395112951,1764447052050,-158.2768408,0.00013699,2]
[395112952,1764447052059,-512.56647935,0.00013699,2]
[395112953,1764447052068,-327.30320866,0.00013699,2]
[395112954,1764447052077,-500.0,0.00013699,2]
[395112955,1764447052086,-532.90296325,0.00013699,2]
[395112956,1764447052096,-500.0,0.00013699,2]
[395112957,1764447052106,-516.92492999,0.00013699,2]
[395112958,1764447052117,-500.0,0.00013699,2]
[395112959,1764447052128,-500.0,0.00013699,2]
[395112960,1764447052138,-500.0,0.00013699,2]
[395112961,1764447052147,-500.0,0.00013699,2]
[395112962,1764447052156,-500.0,0.00013699,2]
[395112963,1764447052166,-500.0,0.00013699,2]
[395112964,1764447052177,-500.0,0.00013699,2]
[395112965,1764447052323,-500.0,0.00013699,2]
[395112966,1764447052335,-163.06729262,0.00013699,2]
[395112967,1764447052344,-500.0,0.00013699,2]
[395112968,1764447052354,-500.0,0.00013699,2]
[395112969,1764447052363,-500.0,0.00013699,2]
[395112970,1764447052372,-500.0,0.00013699,2]
[395112971,1764447052382,-165.63916575,0.00013699,2]
[395112972,1764447052391,-449.0,0.00013699,2]
[395112973,1764447052400,-1000.0,0.00013699,2]
[395112974,1764447052410,-1000.0,0.00013699,2]
[395112975,1764447052419,-1000.0,0.00013699,2]
[395112976,1764447052428,-858.0191,0.00013699,2]
[395112977,1764447052437,-18526.64736355,0.00013734,2]
[395112978,1764447052447,-207.8908245,0.00013737,2]
[395112979,1764447052457,-1311.31134618,0.00013752,2]
[395112980,1764447052467,-500.0,0.00013765,2]
[395112981,1764447052476,-345.94903301,0.00013776,2]
[395112982,1764447052486,-500.0,0.0001378,2]
[395112983,1764447052497,-168.28,0.00013785,2]
[395112984,1764447052507,-577.0,0.00013786,2]
[395112985,1764447052516,-1180.0,0.00013786,2]
[395112986,1764447052526,-770.0,0.000138,2]
[395112987,1764447052535,-1000.0,0.00013821,2]
[395112988,1764447052544,-1000.0,0.00013821,2]
[395112989,1764447052553,-1146.7560754,0.00013821,2]
[395112990,1764447052563,-1000.0,0.00013821,2]
[395112991,1764447052572,-1000.0,0.00013821,2]
[395112992,1764447052582,-1000.0,0.00013821,2]
[395112993,1764447052591,-1000.0,0.00013821,2]
[395112994,1764447052605,-481.81960731,0.00013821,2]
[395112995,1764447052614,-1000.0,0.00013821,2]
[395112996,1764447052623,-1000.0,0.00013821,2]
[395112997,1764447052633,-1000.0,0.00013821,2]
[395112998,1764447052643,-1000.0,0.00013821,2]
[395112999,1764447052653,-1000.0,0.00013821,2]
[395113000,1764447052662,-1000.0,0.00013821,2]
[395113001,1764447052672,-600.22116437,0.00013821,2]
[395113002,1764447052682,-1000.0,0.00013821,2]
[395113003,1764447052691,-1000.0,0.00013821,2]
[395113004,1764447052700,-1000.0,0.00013821,2]
[395113005,1764447052710,-1000.0,0.00013821,2]
[395113006,1764447052719,-230.73029868,0.00013821,2]
[395113007,1764447052728,-1000.0,0.00013821,2]
[395113008,1764447052739,-1000.0,0.00013821,2]